fUST/lending_fUST_20260223
["ID","MTS","AMOUNT","RATE_DAILY","PERIOD"]
[406383640,1771846158111,-868.49988555,0.00015,2]
[406383641,1771846158135,-5236.02068545,0.00017,2]
[406383642,1771846158158,-300.0,0.00017999,2]
[406383643,1771846158181,-5545.91206008,0.00018,2]
[406383644,1771846158202,-420.0,0.00019639,2]
[406383645,1771846158224,-3927.338555,0.0002,2]
[406383646,1771846159106,-18523.63621514,0.0002,2]
[406383647,1771846159126,-1379.56015804,0.0002,3]
[406383648,1771846159146,-1372.85419489,0.00022,7]
[406383649,1771846159166,-184.13529378,0.00026574,2]
[406383650,1771846159185,-500.0,0.00026574,2]
[406383651,1771846159207,-500.0,0.00026574,2]
[406383652,1771846159226,-373.10947167,0.00026574,2]
[406383653,1771846159246,-500.0,0.00026574,2]
[406383654,1771846159266,-200.0,0.00026574,2]
[406383655,1771846159285,-500.0,0.00026574,2]
[406383656,1771846159308,-500.0,0.00026574,2]
[406383657,1771846159331,-500.0,0.00026574,2]
[406383658,1771846159354,-500.0,0.00026574,2]
[406383659,1771846159374,-500.0,0.00026574,2]
[406383660,1771846159394,-500.0,0.00026574,2]
[406383661,1771846159415,-500.0,0.00026574,2]
[406383662,1771846159438,-500.0,0.00026574,2]
[406383663,1771846159458,-500.0,0.00026574,2]
[406383664,1771846159478,-500.0,0.00026574,2]
[406383665,1771846159500,-500.0,0.00026574,2]
[406383666,1771846159524,-500.0,0.00026574,2]
[406383667,1771846159548,-500.0,0.00026574,2]
[406383668,1771846159568,-500.0,0.00026574,2]
[406383669,1771846159588,-500.0,0.00026574,2]
[406383670,1771846159608,-500.0,0.00026574,2]
[406383671,1771846159630,-500.0,0.00026574,2]
[406383672,1771846159652,-412.58218832,0.00026574,2]
[406383673,1771846159675,-500.0,0.00026574,2]
[406383674,1771846159697,-500.0,0.00026574,2]
[406383675,1771846159718,-364.91510714,0.00026574,2]
[406383676,1771846159740,-500.0,0.00026574,2]
[406383677,1771846159760,-500.0,0.00026574,2]
[406383678,1771846159781,-212.50913203,0.00026574,2]
[406383679,1771846159801,-28.58753386,0.00027232,2]
[406383680,1771846159821,-150.19340641,0.00029232,2]
[406383681,1771846159841,-5381.46974891,0.0002999,2]
[406383682,1771846159862,-626.62277424,0.00029999,2]
[406383683,1771846159881,-49726.63290437,0.0003,30]
[406383684,1771846163155,-50273.36709563,0.0003,30]
[406383685,1771846163175,-6168.0,0.0003,30]
[406383686,1771846163194,-37139.22152337,0.0003,30]
[406383687,1771846167084,-299.20989111,0.0003,30]
[406383688,1771846172086,-544.33016832,0.0003,30]
[406383733,1771846238347,-1459.48828401,0.0003,30]
[406383734,1771846238358,-8093.96222099,0.0003,30]
[406383735,1771846238370,-3992.52289779,0.0003,30]
[406383832,1771846246415,-500.0,0.00029999,2]
[406383833,1771846246424,-500.0,0.00029999,2]
[406383834,1771846246434,-500.0,0.00029999,2]
[406383835,1771846246443,-500.0,0.00029999,2]
[406383836,1771846246453,-608.41980092,0.00029999,2]
[406383837,1771846246463,-918.75005065,0.0003,30]
[406383838,1771846246475,-167.10723518,0.000309,2]
[406383839,1771846246485,-10419.2457202,0.0003099,2]
[406383840,1771846362466,567.897916,0.00021,2]
[406383859,1771846809595,212.86,6.5e-05,2]
[406383860,1771846810111,212.86,6.9e-05,2]
[406383863,1771847228118,-5000.0,0.00011915,2]
[406383864,1771847228137,-150.0,0.00011975,2]
[406383865,1771847228156,-1200.0,0.00012034,2]
[406383866,1771847228177,-300.0,0.00012034,2]
[406383867,1771847228197,-5000.0,0.00012035,2]
[406383868,1771847228215,-300.0,0.00012403,2]
[406383869,1771847228236,-300.0,0.00012403,2]
[406383870,1771847228255,-300.0,0.00012403,2]
[406383871,1771847228274,-14264.9803346,0.00012405,2]
[406383872,1771847228295,-600.0,0.0001275,2]
[406383873,1771847228314,-1966.73772193,0.00013173,2]
[406383874,1771847228333,-420.0,0.0001321,2]
[406383875,1771847228353,-17163.13946744,0.00013237,2]
[406383876,1771847231091,-299.34681771,0.00011796,2]
[406383877,1771847233089,-1265.09034433,0.00011796,2]
[406383878,1771847233118,-685.74599643,0.00011796,2]
[406383879,1771847233139,-19872.00885074,0.00013237,2]
[406383880,1771847233160,-1521.0,0.00013237,2]
[406383881,1771847233179,-500.0,0.00013272,2]
[406383882,1771847233197,-373.10947167,0.00013272,2]
[406383883,1771847233219,-500.0,0.00013272,2]
[406383884,1771847233239,-500.0,0.00013272,2]
[406383885,1771847233260,-550.0,0.00013272,2]
[406383886,1771847233280,-500.0,0.00013272,2]
[406383887,1771847233301,-500.0,0.00013272,2]
[406383888,1771847233323,-500.0,0.00013272,2]
[406383889,1771847233345,-500.0,0.00013272,2]
[406383890,1771847233367,-500.0,0.00013272,2]
[406383891,1771847233386,-500.0,0.00013272,2]
[406383892,1771847233405,-500.0,0.00013272,2]
[406383893,1771847233425,-500.0,0.00013272,2]
[406383894,1771847233444,-500.0,0.00013272,2]
[406383895,1771847233464,-477.86019322,0.00013272,2]
[406383896,1771847233483,-469.9631092,0.00013272,2]
[406383918,1771847347100,-5000.0,0.00013139,2]
[406383919,1771847347122,-300.0,0.00013271,2]
[406383920,1771847347146,-300.0,0.00013271,2]
[406383921,1771847347167,-500.0,0.00013272,2]
[406383922,1771847347191,-454.32428964,0.00013272,2]
[406383923,1771847347212,-500.0,0.00013272,2]
[406383924,1771847347233,-500.0,0.00013273,2]
[406383925,1771847347257,-33.31680207,0.00013273,2]
[406383926,1771847351124,-117.3677891,0.00013273,2]
[406383927,1771847351147,-500.0,0.00013273,2]
[406383928,1771847351168,-500.0,0.00013273,2]
[406383929,1771847351189,-182.75541906,0.00013327,2]
[406383930,1771847351210,-158.155989,0.00013696,2]
[406383931,1771847351231,-253.46593381,0.00013698,2]
[406383932,1771847351253,-503.71233878,0.00013699,2]
[406383933,1771847351273,-500.0,0.00013699,2]
[406383934,1771847351293,-500.0,0.00013699,2]
[406383935,1771847351314,-210.9,0.000137,2]
[406383936,1771847351335,-523.84605547,0.000137,2]
[406383937,1771847351356,-1000.0,0.00013821,2]
[406383938,1771847351377,-724.31940407,0.00013821,2]
[406383939,1771847351399,-177.0,0.00013975,2]
[406383940,1771847351421,-1500.0,0.00014368,2]
[406383941,1771847351442,-211.0,0.00014549,2]
[406383942,1771847351463,-2415.65149738,0.00014576,2]
[406383943,1771847351486,-211.88637223,0.000158,2]
[406383944,1771847351508,-267.65558284,0.00015927,2]
[406383945,1771847360119,-5000.0,0.0001314,2]
[406383946,1771847360140,-8.98230971,0.00015927,2]
[406383947,1771847360159,-204.0,0.00015975,2]
[406383948,1771847360178,-150.0,0.00017808,2]
[406383949,1771847360198,-231.0,0.00017975,2]
[406383950,1771847360216,-454.78,0.00018256,2]
[406383951,1771847360235,-102.86786227,0.00018356,2]
[406383952,1771847372122,-297.03521164,0.00013698,2]
[406383958,1771847432601,-3327.74306903,0.00013561,2]
[406383959,1771847432618,-381.04752463,0.00013561,2]
[406383960,1771847432631,-1291.20940634,0.00013561,2]
[406383961,1771847432641,-150.0,0.00013629,2]
[406383962,1771847432652,-864.0,0.00013697,2]
[406383963,1771847432662,-202.96478836,0.00013698,2]
[406383964,1771847432673,-500.0,0.00013698,2]
[406383965,1771847432683,-500.0,0.00013698,2]
[406383966,1771847432694,-150.0,0.000137,2]
[406383967,1771847432704,-150.0,0.000142,2]
[406383968,1771847432715,-150.0,0.000148,2]
[406383969,1771847432725,-150.0,0.000153,2]
[406383970,1771847432735,-177.0,0.00015629,2]
[406383971,1771847432745,-150.0,0.000159,2]
[406383972,1771847432755,-154.76,0.000164,2]
[406383973,1771847432765,-204.0,0.00017629,2]
[406383974,1771847432776,-204.1245118,0.00018356,2]
[406383975,1771847432787,-231.0,0.00019629,2]
[406383976,1771847432798,-134.51126715,0.00021,2]
[406383981,1771847438579,-433.38664885,0.00021,2]
[406383982,1771847438588,-258.0,0.00021629,2]
[406383983,1771847438599,-285.0,0.00023629,2]
[406383984,1771847438608,-757.5977461,0.00024437,30]
[406383985,1771847438619,-211.88637223,0.00024816,56]
[406383986,1771847438629,-312.0,0.00025629,2]
[406383987,1771847438639,-151.0,0.00027397,2]
[406383988,1771847438648,-151.0,0.00027397,2]
[406383989,1771847438658,-205.778617,0.00027397,2]
[406383990,1771847438667,-339.0,0.00027629,2]
[406383991,1771847438676,-504.45008324,0.00027959,2]
[406383992,1771847438686,-3135.6077745,0.00029811,2]
[406383993,1771847438695,-800.6012618,0.00029811,2]
[406383994,1771847438704,-2822.5585084,0.00029811,2]
[406383995,1771847438714,-504.7059563,0.00029811,2]
[406383996,1771847438723,-151.0,0.00029811,7]
[406383997,1771847438732,-208.75446729,0.000299,2]
[406383998,1771847438742,-500.0,0.00029998,2]
[406383999,1771847438751,-500.0,0.00029998,16]
[406384000,1771847438761,-500.0,0.00029998,10]
[406384001,1771847438770,-529.40742505,0.00029998,16]
[406384002,1771847438780,-500.0,0.00029998,16]
[406384003,1771847438790,-500.0,0.00029998,16]
[406384004,1771847438799,-487.83017195,0.00029999,2]
[406384005,1771847438809,-160.21927014,0.00029999,10]
[406384006,1771847438818,-500.0,0.00029999,16]
[406384007,1771847438828,-2015.78253262,0.00030094,2]
[406384008,1771847438838,-1720.89550668,0.0003089,2]
[406384009,1771847438848,-155.3263769,0.000309,2]
[406384010,1771847438858,-10355.6456301,0.0003099,2]
[406384011,1771847438867,-200.47448258,0.0003099,2]
[406384012,1771847438877,-493.17,0.0003099,10]
[406384013,1771847438887,-410.97,0.0003099,10]
[406384014,1771847438896,-342.48,0.0003099,10]
[406384015,1771847438906,-100000.0,0.00031,30]
[406384016,1771847438915,-4346.1,0.00031,2]
[406384017,1771847438925,-200.0,0.00031,7]
[406384018,1771847438937,-200.0,0.00031,7]
[406384019,1771847438947,-200.0,0.00031,7]
[406384020,1771847438956,-200.0,0.00031,7]
[406384021,1771847438966,-305.662478,0.00031,7]
[406384022,1771847438975,-151.0,0.00031,7]
[406384023,1771847438986,-207.58521263,0.00031377,2]
[406384024,1771847438996,-830.34085052,0.00031377,2]
[406384025,1771847439005,-1868.26691366,0.00031377,2]
[406384026,1771847439014,-3321.36340207,0.00031377,2]
[406384027,1771847439024,-434.09935153,0.00031377,2]
[406384028,1771847439033,-781.37883276,0.00031377,2]
[406384029,1771847439043,-1389.1179249,0.00031377,2]
[406384030,1771847439052,-320.69278574,0.00031678,2]
[406384031,1771847439062,-7190.28,0.00031824,30]
[406384032,1771847439072,-10355.6456301,0.0003199,2]
[406384033,1771847439081,-11396.01269881,0.00032,30]
[406384034,1771847439227,-5218.31750266,0.00032,30]
[406384035,1771847439238,-2196.85713117,0.00032,30]
[406384150,1771847443698,-285.21553017,0.00027491,2]
[406384151,1771847443708,-1493.83003784,0.00027769,2]
[406384152,1771847443717,-522.43671559,0.00032,30]
[406384153,1771847443908,-6218.46887624,0.00032,30]
[406384162,1771847750672,294.0,0.000158,120]
[406384189,1771848246750,339.0,0.000158,120]
[406384221,1771848257358,2800.88,9.501e-05,2]
[406384261,1771848336086,-295.2156893,0.00013561,2]
[406384262,1771848336106,-558.42,0.00013698,2]
[406384263,1771848336126,-150.0,0.00013698,2]
[406384264,1771848336145,-500.0,0.00013699,2]
[406384265,1771848336164,-500.0,0.00013699,2]
[406384266,1771848336184,-500.0,0.00013699,2]
[406384267,1771848336203,-500.0,0.00013699,2]
[406384268,1771848336225,-300.0,0.00014246,2]
[406384269,1771848336244,-372.09010676,0.00014247,2]
[406384270,1771848426075,-255.73354781,0.00014247,2]
[406384271,1771848444086,-86.00802859,0.00014247,2]
[406384272,1771848444109,-311.65087499,0.00014247,2]
[406384275,1771848549114,-192.59923229,0.00014247,2]
[406384276,1771848549134,-500.0,0.00014247,2]
[406384277,1771848549155,-49.40622635,0.00014925,2]
[406384278,1771848556105,-100.59377365,0.00014925,2]
[406384279,1771848556124,-153.21841414,0.000158,2]
[406384280,1771848556144,-177.0,0.00016925,2]
[406384281,1771848556164,-151.13409985,0.00017808,2]
[406384282,1771848556184,-150.0,0.00017808,2]
[406384283,1771848556204,-250.0,0.00018356,2]
[406384284,1771848556223,-200.0,0.00018904,2]
[406384285,1771848556249,-204.0,0.00018925,2]
[406384286,1771848556269,-212.91412355,0.0002,2]
[406384287,1771848556290,-193.41080441,0.00020925,2]
[406384288,1771848556309,-154.8486787,0.00021918,2]
[406384289,1771848556329,-150.0,0.00021918,2]
[406384290,1771848556348,-214.64674638,0.00022466,2]
[406384291,1771848556367,-188.0251344,0.00024032,2]
[406384292,1771848556387,-551.576814,0.00024315,2]
[406384293,1771848556407,-158.5909907,0.00024347,2]
[406384294,1771848556430,-540.35744021,0.00026561,2]
[406384295,1771848556450,-2159.26833109,0.00027865,2]
[406384296,1771848556470,-300.0,0.00029331,2]
[406384297,1771848556490,-1128.85808488,0.00029332,2]
[406384298,1771848556512,-448.50994354,0.00029999,2]
[406384299,1771848556534,-807.31789836,0.00029999,2]
[406384300,1771848556558,-1435.23181931,0.00029999,2]
[406384301,1771848556579,-381.67554778,0.00029999,2]
[406384302,1771848556599,-600.0,0.00030599,30]
[406384303,1771848556619,-190.0,0.00030599,3]
[406384304,1771848556646,-2859.8057225,0.00031114,2]
[406384305,1771848556668,-420.0,0.00031634,2]
[406384306,1771848556691,-5.91791207,0.000318,2]
[406384307,1771848566074,-235.33565321,0.00013699,2]
[406384308,1771848566098,-2494.08208793,0.000318,2]
[406384309,1771848566126,-1505.78356838,0.00031898,2]
[406384310,1771848566151,-4142.25825203,0.0003199,2]
[406384311,1771848566176,-825.84,0.0003199,10]
[406384312,1771848566201,-886.58,0.0003199,10]
[406384313,1771848566227,-500.0,0.00031997,2]
[406384314,1771848566249,-500.0,0.00031997,2]
[406384315,1771848566273,-500.0,0.00031997,2]
[406384316,1771848566299,-500.0,0.00031997,2]
[406384317,1771848566324,-500.0,0.00031997,2]
[406384318,1771848566350,-563.3661355,0.00031997,2]
[406384319,1771848566376,-500.0,0.00031997,2]
[406384320,1771848566401,-344.53796988,0.00031997,2]
[406384321,1771848566431,-388.5202994,0.00031997,2]
[406384322,1771848566455,-291.15132077,0.00031997,2]
[406384348,1771848631564,-500.0,0.00030875,2]
[406384350,1771848631574,-75.04625242,0.00031996,2]
[406384352,1771848631585,-324.95374758,0.00031996,2]
[406384354,1771848631596,-208.84867923,0.00031997,2]
[406384356,1771848631605,-213.60351884,0.00031997,2]
[406384502,1771848637577,-286.39648116,0.00031997,2]
[406384503,1771848637586,-500.0,0.00031997,2]
[406384504,1771848637595,-500.0,0.00031997,2]
[406384505,1771848637604,-500.0,0.00031997,2]
[406384506,1771848637614,-500.0,0.00031997,2]
[406384507,1771848637623,-500.0,0.00031997,2]
[406384508,1771848637632,-500.0,0.00031997,2]
[406384509,1771848637641,-500.0,0.00031997,2]
[406384510,1771848637651,-500.0,0.00031997,2]
[406384511,1771848637660,-500.0,0.00031997,2]
[406384512,1771848637669,-500.0,0.00031997,2]
[406384513,1771848637678,-500.0,0.00031997,2]
[406384514,1771848637687,-500.0,0.00031997,2]
[406384515,1771848637698,-500.0,0.00031997,2]
[406384516,1771848637708,-500.0,0.00031997,2]
[406384517,1771848637717,-516.51903214,0.00031997,2]
[406384518,1771848637726,-500.0,0.00031997,2]
[406384519,1771848637736,-500.0,0.00031997,2]
[406384520,1771848637745,-500.0,0.00031997,2]
[406384521,1771848637755,-500.0,0.00031997,2]
[406384522,1771848637764,-500.0,0.00031997,2]
[406384523,1771848637774,-500.0,0.00031997,2]
[406384524,1771848637784,-500.0,0.00031997,2]
[406384525,1771848637793,-500.0,0.00031997,2]
[406384526,1771848637803,-401.50556578,0.00031997,2]
[406384527,1771848637812,-500.0,0.00031997,2]
[406384528,1771848637822,-500.0,0.00031997,2]
[406384529,1771848637832,-500.0,0.00031997,2]
[406384530,1771848637842,-500.0,0.00031997,2]
[406384531,1771848637851,-500.0,0.00031997,2]
[406384532,1771848637861,-500.0,0.00031997,2]
[406384533,1771848637871,-577.40368651,0.00031999,2]
[406384534,1771848637880,-61522.0896339,0.00032,30]
[406384535,1771848637894,-1215.82107193,0.00032,30]
[406384536,1771848637906,-4869.65549784,0.00032,30]
[406384537,1771848637918,-6840.34087186,0.00032,30]
[406384538,1771848637927,-6163.1,0.00032516,30]
[406384539,1771848637939,-600.0,0.00032636,30]
[406384540,1771848637948,-221.87567164,0.00032821,2]
[406384541,1771848637957,-399.37620896,0.00032821,2]
[406384542,1771848637967,-710.00214926,0.00032821,2]
[406384543,1771848637976,-224.22432065,0.00032847,120]
[406384544,1771848637985,-155.32637688,0.000329,2]
[406384545,1771848637994,-2280.62372883,0.0003299,2]
[406384546,1771848638005,-3961.55876206,0.0003299,2]
[406384560,1771848642924,-2042.33401317,0.0003299,2]
[406384561,1771848642934,-6520.68334443,0.00033,30]
[406384562,1771848643124,-408.41397734,0.00033,30]
[406384568,1771848645817,-709.05352591,0.00033,30]
[406384579,1771848748008,388.81516019,0.000158,120]
[406384587,1771848756382,3323.15312575,0.000158,120]
[406384681,1771849625094,-156.55247906,0.00012248,2]
[406384682,1771849652079,-266.08596024,0.00012126,2]
[406384683,1771849747084,-854.80871743,0.00012005,2]
[406384684,1771849747110,-746.34299805,0.00012005,2]
[406384685,1771849747130,-356.02143448,0.00012126,2]
[406384686,1771849747152,-150.0,0.0001231,2]
[406384687,1771849747173,-600.0,0.0001275,2]
[406384688,1771849747193,-469.44439966,0.00012934,2]
[406384689,1771849747212,-203.2,0.000132,2]
[406384690,1771849747232,-1200.0,0.00013272,2]
[406384691,1771849747253,-300.0,0.00013272,2]
[406384692,1771849747272,-638.9562083,0.00013273,2]
[406384693,1771849747291,-753.40388333,0.00013273,2]
[406384694,1771849747361,-1448.14782137,0.00013273,2]
[406384695,1771849747381,-500.0,0.00013273,2]
[406384696,1771849747400,-501.8810816,0.00013273,2]
[406384697,1771849747420,-349.31540883,0.00013273,2]
[406384698,1771849747440,-411.02223482,0.00013699,2]
[406384699,1771849747460,-500.0,0.00013699,2]
[406384700,1771849747479,-500.69126859,0.00013699,2]
[406384701,1771849747498,-617.31775578,0.00013699,2]
[406384702,1771849747517,-501.55795685,0.00013699,2]
[406384703,1771849747538,-232.5475755,0.0001431,2]
[406384704,1771849747558,-420.0,0.00014551,2]
[406384705,1771849747577,-868.49988555,0.00015,2]
[406384706,1771849747597,-587.0,0.00015953,2]
[406384707,1771849747616,-15646.1283453,0.000169,2]
[406384708,1771849747635,-13204.79887281,0.00017,2]
[406384709,1771849747655,-200.0,0.0001749,2]
[406384710,1771849747674,-5952.1688859,0.00019,2]
[406384711,1771849759077,-1043.92901908,0.00019,2]
[406384712,1771849761073,-11518.89922292,0.00019,2]
[406384713,1771849761092,-4440.4589777,0.00019565,2]
[406384714,1771849761115,-500.0,0.00019999,2]
[406384715,1771849761136,-500.0,0.00019999,2]
[406384716,1771849761158,-500.0,0.00019999,2]
[406384717,1771849761178,-500.0,0.00019999,2]
[406384718,1771849761200,-500.0,0.00019999,2]
[406384719,1771849761220,-500.0,0.00019999,2]
[406384720,1771849761241,-500.0,0.00019999,2]
[406384721,1771849761261,-331.12089393,0.00019999,2]
[406384722,1771849761283,-500.0,0.00019999,2]
[406384723,1771849761302,-500.0,0.00019999,2]
[406384724,1771849761323,-500.0,0.00019999,2]
[406384725,1771849761343,-500.0,0.00019999,2]
[406384726,1771849761363,-500.0,0.00019999,2]
[406384727,1771849761382,-500.0,0.00019999,2]
[406384728,1771849761402,-500.0,0.00019999,2]
[406384729,1771849761422,-500.0,0.00019999,2]
[406384730,1771849761442,-500.0,0.00019999,2]
[406384731,1771849761463,-500.0,0.00019999,2]
[406384732,1771849761483,-500.0,0.00019999,2]
[406384733,1771849761502,-500.0,0.00019999,2]
[406384734,1771849761523,-500.0,0.00019999,2]
[406384735,1771849761543,-500.0,0.00019999,2]
[406384736,1771849761563,-194.65969595,0.00019999,2]
[406384737,1771849761583,-500.0,0.00019999,2]
[406384738,1771849761604,-500.0,0.00019999,2]
[406384739,1771849761713,-460.97112917,0.00019999,2]
[406384740,1771849761735,-500.0,0.00019999,2]
[406384741,1771849761758,-500.0,0.00019999,2]
[406384742,1771849761779,-500.0,0.00019999,2]
[406384743,1771849761800,-500.0,0.00019999,2]
[406384744,1771849761821,-500.0,0.00019999,2]
[406384745,1771849761844,-500.0,0.00019999,2]
[406384746,1771849761865,-500.0,0.00019999,2]
[406384747,1771849761885,-500.0,0.00019999,2]
[406384748,1771849761906,-500.0,0.00019999,2]
[406384749,1771849761926,-500.0,0.00019999,2]
[406384750,1771849761947,-500.0,0.00019999,2]
[406384751,1771849761969,-500.0,0.00019999,2]
[406384752,1771849761989,-500.0,0.00019999,2]
[406384753,1771849762009,-500.0,0.00019999,2]
[406384754,1771849762029,-500.0,0.00019999,2]
[406384755,1771849762049,-500.0,0.00019999,2]
[406384756,1771849762070,-500.0,0.00019999,2]
[406384757,1771849762091,-500.0,0.00019999,2]
[406384758,1771849762113,-500.0,0.00019999,2]
[406384759,1771849762133,-341.57791737,0.00019999,2]
[406384760,1771849762154,-500.0,0.00019999,2]
[406384761,1771849762175,-500.0,0.00019999,2]
[406384762,1771849762196,-500.0,0.00019999,2]
[406384763,1771849762216,-500.0,0.00019999,2]
[406384764,1771849762236,-500.0,0.00019999,2]
[406384765,1771849762255,-500.0,0.00019999,2]
[406384766,1771849762277,-500.0,0.00019999,2]
[406384767,1771849762296,-500.0,0.00019999,2]
[406384768,1771849762316,-500.0,0.00019999,2]
[406384769,1771849762336,-500.0,0.00019999,2]
[406384770,1771849762356,-500.0,0.00019999,2]
[406384771,1771849762376,-500.0,0.00019999,2]
[406384772,1771849762397,-500.0,0.00019999,2]
[406384773,1771849762416,-500.0,0.00019999,2]
[406384774,1771849762436,-500.0,0.00019999,2]
[406384775,1771849762456,-500.0,0.00019999,2]
[406384776,1771849762475,-500.0,0.00019999,2]
[406384777,1771849762495,-500.0,0.00019999,2]
[406384778,1771849762514,-500.0,0.00019999,2]
[406384779,1771849762535,-500.0,0.00019999,2]
[406384780,1771849762556,-500.0,0.00019999,2]
[406384781,1771849762576,-614.27186992,0.00019999,2]
[406384782,1771849762596,-500.0,0.00019999,2]
[406384783,1771849762616,-500.0,0.00019999,2]
[406384784,1771849762637,-500.0,0.00019999,2]
[406384785,1771849762656,-500.0,0.00019999,2]
[406384786,1771849762675,-5429.15228786,0.0002,2]
[406384816,1771849831719,-6578.69235496,0.000199,2]
[406384818,1771849831730,-1273.685319,0.0002,2]
[406384895,1771849837941,-1465.00951315,0.0002,2]
[406384896,1771849837954,-4388.14269436,0.0002,2]
[406384897,1771849837968,-12187.97673883,0.0002,2]
[406384898,1771849837978,-1379.56015804,0.0002,3]
[406384899,1771849837987,-1995.4033921,0.00020057,2]
[406384900,1771849837997,-7794.72344871,0.00022,7]
[406384901,1771849838006,-2100.0,0.00023466,2]
[406384902,1771849838015,-13076.05316356,0.0002465,2]
[406385059,1771849846095,-3379.53302045,0.0002465,2]
[406385060,1771849846105,-1074.15284518,0.00027121,2]
[406385061,1771849846115,-407.20130944,0.00027869,2]
[406385062,1771849846124,-1246.32820227,0.00028094,4]
[406385063,1771849846134,-178.2132427,0.00028877,2]
[406385067,1771849846149,-554.74911429,0.00028877,2]
[406385069,1771849846158,-1303.04419021,0.00028877,2]
[406385071,1771849846167,-5282.66,0.00029737,30]
[406385072,1771849846176,-155.32637688,0.000299,2]
[406385074,1771849846186,-3520.91951422,0.0002999,2]
[406385076,1771849846195,-50000.0,0.0003,30]
[406385078,1771849846204,-22440.87174461,0.0003,30]
[406385093,1771849940118,-172.18872476,0.00013273,2]
[406385094,1771849940148,-269.76210398,0.00013673,2]
[406385096,1771850051132,3000.0,9.501e-05,2]
[406385112,1771850836133,-1277.84989478,9.702e-05,2]
[406385113,1771850841103,-2814.41614691,9.702e-05,2]
[406385114,1771850841127,-150.0,9.85e-05,2]
[406385115,1771850841151,-197.99,9.9e-05,2]
[406385116,1771850841174,-300.0,9.998e-05,2]
[406385117,1771850841197,-500.0,9.999e-05,2]
[406385118,1771850841221,-500.0,9.999e-05,2]
[406385119,1771850841248,-500.0,9.999e-05,2]
[406385120,1771850841285,-500.0,9.999e-05,2]
[406385121,1771850841312,-507.52429991,9.999e-05,2]
[406385122,1771850841337,-243.85107733,9.999e-05,2]
[406385123,1771850841368,-500.0,9.999e-05,2]
[406385124,1771850841403,-238.95943938,9.999e-05,2]
[406385125,1771850841430,-500.0,9.999e-05,2]
[406385126,1771850841459,-500.0,9.999e-05,2]
[406385127,1771850841485,-500.0,9.999e-05,2]
[406385128,1771850841511,-500.0,9.999e-05,2]
[406385129,1771850841535,-525.41601057,9.999e-05,2]
[406385130,1771850841688,-364.91510714,9.999e-05,2]
[406385131,1771850841709,-5109.98937008,0.0001,2]
[406385132,1771850841739,-779.52998742,0.0001,2]
[406385133,1771850842097,-1070.44534695,0.0001,2]
[406385136,1771850956107,-5000.0,9.678e-05,2]
[406385137,1771850956132,-150.0,9.776e-05,2]
[406385138,1771850956155,-300.0,9.999e-05,2]
[406385139,1771850956175,-17462.11069547,0.0001,2]
[406385140,1771850957102,-107588.71460008,0.0001,2]
[406385141,1771850957124,-217.78176966,0.0001,2]
[406385142,1771850957146,-165.97455887,0.0001,2]
[406385143,1771850957167,-177.0,0.00011776,2]
[406385144,1771850957189,-363.00180619,0.00013273,2]
[406385145,1771850960083,-136.99819381,0.00013273,2]
[406385146,1771850960106,-297.03521164,0.00013698,2]
[406385147,1771850960126,-150.10799448,0.00013699,2]
[406385148,1771850960146,-213.82352374,0.00013699,2]
[406385149,1771850960261,-204.0,0.00013776,2]
[406385150,1771850960283,-500.0,0.00013821,2]
[406385151,1771850960303,-180.26624668,0.000149,2]
[406385152,1771850960327,-162.4927522,0.000157,2]
[406385153,1771850960349,-231.0,0.00015776,2]